Cogmind - Beta 11 @@@ ROGUE MODE // 2022.03.28 @ 20:36:33 Player: Red Box Result: Destroyed by S-10 Pest with Light Assault Rifle Performance ------------- Evolutions (0) 0 Regions Visited (2) 400 Robots Destroyed (20) 100 Value Destroyed (399) 399 Prototype IDs (3) 60 Alien Tech Used (0) 0 Bonus (0) 0 TOTAL SCORE: 959 Bonus ------- None Cogmind --------- Core Integrity 0/250 Matter 262/300 Energy 125/125 System Corruption 0% Temperature Cool (0) Movement Rolling (110) Ox2 Location -10/Mines Parts ------- > --- POWER (1) -------- Light Ion Engine > --- PROPULSION (2) --- Wheel Wheel > --- UTILITY (2) ------ Improved Heat Sink High-capacity Storage Unit > --- WEAPON (2) ------- Advanced Beam Cannon Advanced Beam Cannon > --- INVENTORY (20) --- Wheel Compact Wheel Huge Storage Unit ECM Suite Weapon Shielding Weapon Shielding Sensor Drone Bay Beam Rifle Beam Rifle Beam Rifle Beam Rifle Beam Cannon Advanced Beam Cannon Heavy Assault Rifle Heavy Assault Rifle Heavy Assault Rifle Heavy Assault Rifle Grenade Launcher Datajack Mining Laser Peak State ------------ > --- POWER ------------ Ion Engine > --- PROPULSION ------- Aluminum Leg Wheel > --- UTILITY ---------- Improved Heat Sink High-capacity Storage Unit > --- WEAPON ----------- Advanced Beam Cannon Advanced Beam Cannon > --- INVENTORY -------- Wheel Wheel Compact Wheel Huge Storage Unit ECM Suite Weapon Shielding Weapon Shielding Beam Rifle Beam Rifle Beam Rifle Beam Rifle Beam Cannon Advanced Beam Cannon Heavy Assault Rifle Heavy Assault Rifle Heavy Assault Rifle Heavy Assault Rifle Grenade Launcher Datajack Mining Laser [Rating: 16] Favorites ----------- Power Ion Engine Engine Ion Engine Propulsion Compact Wheel Leg Aluminum Leg Wheel Compact Wheel Utility High-capacity Storage Unit Device Heat Sink Storage High-capacity Storage Unit Weapon Small Laser Energy Gun Small Laser Energy Cannon Advanced Beam Cannon Ballistic Gun Assault Rifle Launcher Grenade Launcher Special Weapon Mining Laser Special Melee Weapon Datajack Build | -11 -10 -10 ------- Run | Scr Mat Min Slots Evolved . | . . . Power . | . . . Propulsion . | . . . Utility . | . . . Weapon . | . . . Parts Attached 31 | 7 18 6 Power 2 | 1 . 1 Engine 2 | 1 . 1 Core . | . . . Reactor . | . . . Propulsion 7 | 2 3 2 Treads . | . . . Leg 3 | 2 . 1 Wheel 4 | . 3 1 Hover . | . . . Flight . | . . . Utility 8 | 2 5 1 Device 5 | 1 3 1 Storage 3 | 1 2 . Processor . | . . . Hackware . | . . . Protection . | . . . Artifact . | . . . Weapon 14 | 2 10 2 Energy Gun 4 | 2 2 . Energy Cannon 5 | . 4 1 Ballistic Gun 1 | . 1 . Ballistic Cannon . | . . . Launcher 2 | . 1 1 Special Weapon 1 | . 1 . Impact Weapon . | . . . Slashing Weapon . | . . . Piercing Weapon . | . . . Special Melee Weapon 1 | . 1 . Unidentified Prototypes 1 | . 1 . Parts Lost 6 | . 4 2 Power 1 | . . 1 Propulsion 2 | . 1 1 Utility 1 | . 1 . Weapon 2 | . 2 . Highest Loss Streak 2 | . 2 1 To Critical Strikes . | . . . Average Slot Usage (%) 96 | . 96 98 Engine 13 | . 14 12 Leg 2 | . 3 . Wheel 24 | . 23 26 Device 12 | . 11 14 Storage 14 | . 14 14 Energy Gun 13 | . 15 . Energy Cannon 11 | . 8 27 Special Melee Weapon 1 | . 1 . Naked Turns . | . . . Heaviest Build 88 | 13 88 54 Greatest Support 32 | 20 32 26 Greatest Overweight (x) 5 | 1 2 5 Average Overweight (x) 1 | . 1 2 Largest Inventory Capacity 25 | 8 25 20 Average Capacity 17 | 7 17 20 Most Carried 20 | 8 20 20 Average Carried 14 | 4 14 19 Final Capacity 20 | 8 20 20 Final Carried 20 | 8 20 20 Class Distribution -------------------- 100% | Mutant Dominant Class ---------------- Mutant | -10/Materials Mutant | -10/Mines Resources | -11 -10 -10 ----------- Run | Scr Mat Min Matter Collected 477 | 254 186 37 Remotely . | . . . Salvage Created 610 | 40 441 129 Parts 41 | 7 25 9 Haulers Intercepted 2 | . 2 . Recyclers Shooed 1 | 1 . . Parts Field Recycled . | . . . Retrieved Matter . | . . . Parts Self-Destructed . | . . . Prevented . | . . . Kills | -11 -10 -10 ------- Run | Scr Mat Min Combat Hostiles Destroyed 13 | . 9 4 Guns 7 | . 7 . Cannons 4 | . 1 3 AOE 2 | . 1 1 Classes Destroyed 6 | 1 4 1 Worker 1 | . . 1 Tunneler 2 | 2 . . Hauler 2 | . 2 . Watcher 2 | . 2 . Swarmer 5 | . 3 2 Grunt 8 | . 6 2 Best Kill Streak 5 | 1 5 3 Combat Bots Only 5 | . 5 2 Max Kills in Single Turn 2 | 1 2 2 Gunslinging . | . . . Exploded 1 | . 1 1 Melee . | . . . Uniques/NPCs Destroyed . | . . . Combat | -11 -10 -10 -------- Run | Scr Mat Min Damage Taken 864 | . 663 201 Core 250 | . 197 53 Absorbed by Shields . | . . . Core Remaining (%) 100 | 100 . . Volleys Fired 66 | 7 49 10 Largest 2 | 2 2 2 Hottest 136 | 80 136 136 Shots Fired 126 | 14 93 19 Gun 92 | 14 78 . Cannon 27 | . 10 17 Launcher 3 | . 1 2 Special 4 | . 4 . Kinetic . | . . . Thermal 123 | 14 92 17 Explosive 3 | . 1 2 Electromagnetic . | . . . Robot Hit Streak 10 | 2 10 4 Robot Miss Streak 4 | 2 4 1 Penetration Max . | . . . Secondary Targets 2 | . 2 . Max Gunslinging Chain 1 | . 1 . Shots Hit Robots 75 | 6 57 12 Core Hits 33 | 2 24 7 Critical Kills . | . . . Critical Parts Destroyed . | . . . Critical Strikes 1 | . 1 . Burn 1 | . 1 . Melee Attacks 7 | . 7 . Impact . | . . . Slashing . | . . . Piercing . | . . . Sneak Attacks 5 | . 5 . Combat Hostiles . | . . . Follow-up Attacks . | . . . Damage Inflicted 1067 | 69 680 318 Guns 570 | 69 501 . Cannons 388 | . 129 259 Explosions 109 | . 50 59 Melee . | . . . Ramming . | . . . Kinetic . | . . . Thermal 958 | 69 630 259 Explosive 109 | . 50 59 Electromagnetic . | . . . Impact . | . . . Slashing . | . . . Piercing . | . . . Highest Corruption . | . . . Average Corruption . | . . . Corruption Purged . | . . . Corruption Blocked . | . . . Overload Shots . | . . . Overflow Damage 7 | . . 7 Projectiles 7 | . . 7 Explosions . | . . . Melee . | . . . Knockbacks . | . . . Impact . | . . . Kinetic . | . . . Secondary . | . . . Self-Inflicted Damage 34 | . . 34 Shots 1 | . . 1 Rammed . | . . . Targets Rammed . | . . . Kicked . | . . . Crushed . | . . . Highest Temperature 413 | 54 279 413 Average Temperature 112 | 24 100 212 Received Heat Transfer 333 | . 270 63 Effects 3 | . 2 1 Shutdowns 1 | . . 1 Energy Bleed 2 | . 2 . Siege Activations . | . . . Robots Corrupted . | . . . Combat Hostiles . | . . . Parts Fried . | . . . Impact Corruptions . | . . . Robots Melted . | . . . Combat Hostiles . | . . . Parts Melted 1 | . 1 . Heat Transferred 2075 | 150 1481 444 Parts Sabotaged . | . . . Parts Stolen . | . . . Parts Stripped . | . . . Power Chain Reactions . | . . . Missiles Intercepted . | . . . Alert | -11 -10 -10 ------- Run | Scr Mat Min Peak Influence 252 | 10 252 155 Initial 6 | . 6 . Average 83 | 4 92 68 Maximum Alert Level 1 | . 1 . Low Security (%) 82 | 100 77 100 Level 1 17 | . 22 . Level 2 . | . . . Level 3 . | . . . Level 4 . | . . . Level 5 . | . . . High Security . | . . . Max Security . | . . . Squads Dispatched 1 | . 1 . Investigation 1 | . 1 . Extermination . | . . . Reinforcement . | . . . Assault . | . . . Garrison . | . . . Intercept . | . . . Searches Triggered . | . . . Construction Impeded . | . . . Haulers Reinforced . | . . . Active Scanning Responses . | . . . Cargo Convoy Interrupts . | . . . Stealth | -11 -10 -10 --------- Run | Scr Mat Min Distress Signals 1 | . 1 . Communications Jammed . | . . . Distress Signals . | . . . Times Spotted 30 | . 22 8 Peak Tracking Total 4 | . 4 3 Tactical Retreats 3 | . 2 1 Traps | -11 -10 -10 ------- Run | Scr Mat Min Traps Triggered . | . . . Indirectly . | . . . Trap Hack Attempts . | . . . Triggered . | . . . Disarmed . | . . . Reprogrammed . | . . . Reused . | . . . Traps Extracted . | . . . Installed . | . . . Triggered . | . . . Machines | -11 -10 -10 ---------- Run | Scr Mat Min Machines Disabled . | . . . Max in Single Turn . | . . . Machines Sabotaged . | . . . Garrisons Compromised . | . . . Overloaded Fab Kills . | . . . Hacking | -11 -10 -10 --------- Run | Scr Mat Min Machines Accessed 12 | . 11 1 Terminals 8 | . 8 . Fabricators . | . . . Repair Stations 1 | . 1 . Recycling Units 2 | . 2 . Scanalyzers . | . . . Garrison Access . | . . . Total Hacks 43 | . 42 1 Successful 24 | . 23 1 Failed 19 | . 19 . Catastrophic 1 | . 1 . Database Lockouts . | . . . Manual 24 | . 24 . Terminals 34 | . 34 . Fabricators . | . . . Repair Stations 2 | . 2 . Recycling Units 6 | . 6 . Scanalyzers . | . . . Garrison Access . | . . . Terminal Hacks 10 | . 9 1 Robot Analysis 3 | . 3 . Prototype ID Bank 1 | . 1 . Open Door 1 | . . 1 Terminal Index 1 | . 1 . Unreport Threat 1 | . 1 . Locate Traps 1 | . 1 . Zone Layout 2 | . 2 . Fabricator Hacks . | . . . Repair Station Hacks 2 | . 2 . Scan Component 1 | . 1 . Repair 1 | . 1 . Recycling Unit Hacks 2 | . 2 . Retrieve Components 2 | . 2 . Scanalyzer . | . . . Garrison Access Hacks . | . . . Unauthorized Hacks 10 | . 10 . Terminals 8 | . 8 . Assimilate 2 | . 2 . Botnet 5 | . 5 . Operators 1 | . 1 . Fabricators . | . . . Repair Stations . | . . . Recycling Units 2 | . 2 . Reject 1 | . 1 . Tunnel 1 | . 1 . Scanalyzers . | . . . Garrison Access . | . . . Data Cores Recovered . | . . . Used . | . . . Hacking Detections 8 | . 8 . Full Trace Events . | . . . Feedback Events . | . . . Feedback Blocked . | . . . Robot Schematics Acquired . | . . . Robots Built . | . . . Authchips . | . . . Time . | . . . Total Robot Build Rating . | . . . Part Schematics Acquired . | . . . Parts Built . | . . . Authchips . | . . . Time . | . . . Total Part Build Rating . | . . . Parts Repaired 1 | . 1 . Time 36 | . 36 . Parts Recycled . | . . . Recycled Matter . | . . . Retrieved Matter . | . . . Retrieved Components 11 | . 11 . Parts Scanalyzed . | . . . Part Schematics Acquired . | . . . Parts Damaged . | . . . Bothacking | -11 -10 -10 ------------ Run | Scr Mat Min Used RIF Installer . | . . . Robots Hacked 4 | . 4 . Non-combat 4 | . 4 . Combat . | . . . Robot Hacks Applied 5 | . 5 . parse_system 4 | . 4 . no_distress 1 | . 1 . Relay Couplers Released . | . . . Fabnet Peak Effective % . | . . . Robots Rewired . | . . . Allies Hacked . | . . . Hacks Repelled . | . . . Allies | -11 -10 -10 -------- Run | Scr Mat Min Total Allies 1 | . 1 . Largest Group 1 | . 1 1 Highest-Rated Group 10 | . 10 10 Highest-Rated Ally 10 | . 10 10 Total Orders 2 | . . 2 STAY 1 | . . 1 FOLLOW 1 | . . 1 Ally Attacks . | . . . Total Damage . | . . . Kills . | . . . Allies Corrupted . | . . . Allies Melted . | . . . Intel | -11 -10 -10 ------- Run | Scr Mat Min Robot Analysis Total 3 | . 3 . Derelict Logs Recovered 1 | . . 1 Drone Launches . | . . . Drone Recoveries . | . . . Exploration | -11 -10 -10 ------------- Run | Scr Mat Min Turns Passed 1697 | 115 1330 252 Spaces Moved 1112 | 58 869 185 Core 5 | 5 . . Treads . | . . . Legs 148 | 53 95 . Wheels 959 | . 774 185 Hover . | . . . Flight . | . . . Fastest Speed 50 | 50 100 110 Average Speed 118 | 130 119 112 Slowest Speed 190 | 190 190 155 Overloaded Moves . | . . . Propulsion Burnouts . | . . . Robots Hopped . | . . . Cave-ins Triggered . | . . . Exploration Rate (%) 45 | 4 91 42 Regions Visited 2 Branch Regions 1 Pre-discovered Areas 1 | . 1 . Known Exits Taken . | . . . Unknown Exits Taken 2 | 1 1 . Scrap Searched . | . . . Spaces Dug 4 | . 4 . Terrain Destroyed 27 | . 12 15 Melee . | . . . Projectile 4 | . 4 . AOE 23 | . 8 15 Terrain Rammed . | . . . Walls Destroyed . | . . . Machines Disabled . | . . . Actions | -11 -10 -10 --------- Run | Scr Mat Min Total 1351 | 80 1062 209 Wait 75 | . 70 5 Move 1110 | 57 868 185 Hop . | . . . Pick Up 42 | 9 32 1 Fast Attach 10 | 6 2 2 Attach 9 | 1 8 . Detach 1 | . 1 . Swap 12 | . 8 4 Drop 19 | . 17 2 Fire 66 | 7 49 10 Melee 7 | . 7 . Ram . | . . . Kick . | . . . Crush . | . . . Escape Stasis . | . . . Rewire . | . . . Trap . | . . . Miscellaneous . | . . . Route ------- -11/Scrapyard -10/Materials (discovered 5 exits: [*Mat x3] / *Min x2) -10/Mines History --------- Turn | Location | Event 39 | -11/Scrapyard | Discovered new exit (range 16) 116 | -11/Scrapyard | Entered Materials 317 | -10/Materials | Build established: Mutant 462 | -10/Materials | Discovered new exit (range 16) 644 | -10/Materials | Discovered new exit (range 15) 752 | -10/Materials | Discovered new exit (range 12) 765 | -10/Materials | Core integrity fell below 50% 869 | -10/Materials | Discovered new exit (range 14) 936 | -10/Materials | Discovered new exit (range 15) 1117 | -10/Materials | Repaired Broken Com. Wheel 1446 | -10/Materials | Entered Mines 1446 | -10/Mines | Accompanied by 1 ally 1484 | -10/Mines | Core integrity fell below 20% 1512 | -10/Mines | Met a Derelict bent on vengeance 1588 | -10/Mines | Found the Drone Emporium 1595 | -10/Mines | Found Prototype Device 1698 | -10/Mines | Destroyed by S-10 Pest with Light Assault Rifle Last Messages --------------- >>Open Door Sealed Doors opened. 01588_ J3-968(g): "Well that was anticlimactic. Heard you outside and thought you were from the Merchants Guild. I haven't even officially opened my Drone Emporium yet but am totally ready to tell them where they can shove that C&D." 01590_ J3-968(g): "I'm a fan of the free market. Free drones for all! No strings attached!" 01595_ Acquired Prototype Device. 01604_ 7P-6RN(g): "UNAWARE KILLED MY BEST FRIEND! VENGEANCE!" 01625_ K-01 Serf destroyed. 01626_ Ion Engine destroyed. 01627_ S-10 Pest destroyed. 01638_ R-06 Scavenger collects Wheel. 01640_ Acquired 7 matter. 01642_ The unstable cave ceiling collapses. 01642_ Acquired Lgt. Ion Engine. 01651_ T-07 Excavator is excavating. 01679_ Acquired derelict log, extracted data. Data stored: Storage entrances (x1). Map ----- +----------------------------------------------------+ | #????????????????????????????????????????????? | | #????????????????????????????????????????????? | | # ##????????????????????????????????????????????? | | ####?????????????????????????????????????????????? | | ?????????????????????????????????????????????????? | | ?????????????????????????????????????????????????? | | ?????????????????????????????????????????????????? | | ?????????????????????????????????????????????????? | | ?????????????????????????????????????????????????? | | ?????????????????????????????????????????????????? | | ?????????????????????????????????????????????????? | | ?????????????????????????????????????????????????? | | ?????????????????????###?????????????????????????? | | ????????????????????? #?????????????????????????? | | ?????????????????????# #?????????????????????????? | | ?????????????????????# #?????????????????????????? | | ?????????????????????# #?????????????????????????? | | ?????????????????????# #?????????????????????????? | | ?????????????????????# #?????????????????????????? | | ?????????????????????# #?????????????????????????? | | ????????????####?????# #?????????????????????????? | | ???????????## ##????# #?????????????????????????? | | ??????????## ##???# #?????????????????????????? | | #??????#### ##??# #?????????????????????????? | | ##?????# ####o#####?????????????????????? | | ###???# ### @ #?????????????????????? | | #???# #?## #######s#?????????????????????? | | #???# #??## #???### #### ???????? | | =##### #???## #??# s ???????? | | = #????## #??# s #?????????????? | | ##### #?????## ##??# ####### ##?????????????? | | ###???# #??????####???# ????????????????????????? | | ##?????# #?????????????# ????????????????????????? | | ???????# #?????????????#?????????????????????????? | | ???????# #???????????????????????????????????????? | | ???????# ???????????????????????????????????????? | | ???????# #???????????????????????????????????????? | | ???????# #???????????????????????????????????????? | | ??????? #???????????????????????????????????????? | | ???????##????????????????????????????????????????? | | ?????????????????????????????????????????????????? | | ?????????????????????????????????????????????????? | | ?????????????????????????????????????????????????? | | ?????????????????????????????????????????????????? | | ?????????????????????????????????????????????????? | | ?????????????????????????????????????????????????? | | ?????????????????????????????????????????????????? | | ?????????????????????????????????????????????????? | | ?????????????????????????????????????????????????? | | ?????????????????????????????????????????????????? | +----------------------------------------------------+ Best States ------------- Heat Dissipation 39 Energy Generation 10 Energy Capacity 250 Matter Stores 300 Matter Capacity 300 Sight Range 16 Terrain Scan Range 16 Terrain Scan Density 10 ECM Strength 1 Evasion (%) 55 Item Schematics ----------------- None Robot Schematics ------------------ None Fabricated ------------ Nothing Alien Tech Used ----------------- None Achievements -------------- None Challenges ------------ None Game ------ Seed PulseDecoderAccelerator Manual? 0 Play Time 00:16:54 Cumulative 204.0 hours Start 2022.03.28 @ 20:21:39 End 2022.03.28 @ 20:36:33 Sessions 1 Manual Loads 0 Difficulty Rogue Special Mode None Game No. 190 Rogue 190 Adventurer 0 Explorer 0 Win Type - Total 0 Types 0/0/0/0/0/0/0/0/0 Lore% 41 Gallery% 48 Achievement% 36 Wizard Run 0 Options --------- ASCII 0 Keyboard 0 Movement Mouse Keybinds 0 Fullscreen 1 Font 16/SmallcapsGlow Map View 75x55 Tactical HUD 1 Map Filters NONE Filters NONE Steam 1 RUN: e7de886b-6c4a-40a3-aca3-79daf46ec514